[Event "*** Titled Tuesday Blitz"]
[Site "Chess.com"]
[Date "2020.12.29"]
[Round "3"]
[White "Vaathi_Coming"]
[Black "Karacsonyi_Gellert"]
[Result "1-0"]
[WhiteElo "2837"]
[BlackElo "2606"]
[TimeControl "180+1"]
[EndTime "10:29:37 PST"]
[Termination "Vaathi_Coming won by resignation"]

1. Nf3 {[%clk 0:03:00.9]} 1... Nf6 {[%clk 0:02:59.9]} 2. b3 {[%clk 0:03:01.2]}
2... d5 {[%clk 0:03:00]} 3. Bb2 {[%clk 0:03:01.4]} 3... e6 {[%clk 0:03:00.5]} 4.
e3 {[%clk 0:03:01.8]} 4... Be7 {[%clk 0:03:01.1]} 5. Be2 {[%clk 0:03:00.9]} 5...
O-O {[%clk 0:03:01.5]} 6. O-O {[%clk 0:03:01.2]} 6... c5 {[%clk 0:03:02.1]} 7.
c4 {[%clk 0:03:00.6]} 7... b6 {[%clk 0:03:02.7]} 8. cxd5 {[%clk 0:03:00.1]} 8...
Nxd5 {[%clk 0:03:02.1]} 9. Nc3 {[%clk 0:02:58.2]} 9... Bf6 {[%clk 0:02:57.6]}
10. Rc1 {[%clk 0:02:34.9]} 10... Bb7 {[%clk 0:02:56.2]} 11. d4 {[%clk
0:02:35.3]} 11... cxd4 {[%clk 0:02:49.4]} 12. Nxd4 {[%clk 0:02:36.2]} 12... Nc6
{[%clk 0:02:46.3]} 13. Nxd5 {[%clk 0:02:23.4]} 13... Bxd4 {[%clk 0:02:44.6]} 14.
Bxd4 {[%clk 0:01:58.3]} 14... Nxd4 {[%clk 0:02:40.2]} 15. Qxd4 {[%clk
0:01:59.2]} 15... Qxd5 {[%clk 0:02:36.6]} 16. Qxd5 {[%clk 0:01:57.3]} 16... Bxd5
{[%clk 0:02:37.5]} 17. f3 {[%clk 0:01:51]} 17... Rac8 {[%clk 0:02:35]} 18. Ba6
{[%clk 0:01:48.2]} 18... Rxc1 {[%clk 0:02:12.1]} 19. Rxc1 {[%clk 0:01:49.1]}
19... f5 {[%clk 0:02:12.7]} 20. Kf2 {[%clk 0:01:42.1]} 20... g5 {[%clk
0:02:05.6]} 21. Ke2 {[%clk 0:01:27.5]} 21... Rf7 {[%clk 0:02:05.2]} 22. Bd3
{[%clk 0:01:10.1]} 22... Kg7 {[%clk 0:02:03]} 23. Rc8 {[%clk 0:01:06.5]} 23...
Bb7 {[%clk 0:01:59.3]} 24. Re8 {[%clk 0:01:04.3]} 24... Kf6 {[%clk 0:01:57.8]}
25. Bc4 {[%clk 0:01:03.8]} 25... Re7 {[%clk 0:01:54.9]} 26. Rf8+ {[%clk
0:01:04.2]} 26... Rf7 {[%clk 0:01:54.3]} 27. Rd8 {[%clk 0:01:01.2]} 27... Ke7
{[%clk 0:01:41.4]} 28. Rb8 {[%clk 0:00:58.7]} 28... Kf6 {[%clk 0:01:36.4]} 29.
g3 {[%clk 0:00:55.6]} 29... Bd5 {[%clk 0:01:24.6]} 30. Bxd5 {[%clk 0:00:51.7]}
30... exd5 {[%clk 0:01:25.5]} 31. Rd8 {[%clk 0:00:46.1]} 31... Ke6 {[%clk
0:01:25.7]} 32. Kd3 {[%clk 0:00:45.6]} 32... f4 {[%clk 0:01:16.8]} 33. exf4
{[%clk 0:00:43.2]} 33... gxf4 {[%clk 0:01:17.7]} 34. g4 {[%clk 0:00:43]} 34...
h5 {[%clk 0:01:15.4]} 35. h3 {[%clk 0:00:22.6]} 35... hxg4 {[%clk 0:00:38.6]}
36. hxg4 {[%clk 0:00:23.5]} 36... Ke5 {[%clk 0:00:26.3]} 37. Re8+ {[%clk
0:00:20.4]} 37... Kf6 {[%clk 0:00:23.5]} 38. Kd4 {[%clk 0:00:16.9]} 38... Kg5
{[%clk 0:00:24]} 39. Rh8 {[%clk 0:00:16.6]} 39... Rc7 {[%clk 0:00:22]} 40. Rh5+
{[%clk 0:00:14.9]} 40... Kg6 {[%clk 0:00:22.4]} 41. Rf5 {[%clk 0:00:12.3]} 41...
Rc2 {[%clk 0:00:22]} 42. a4 {[%clk 0:00:06.7]} 42... Rd2+ {[%clk 0:00:21.7]} 43.
Kc3 {[%clk 0:00:06.4]} 43... Rd1 {[%clk 0:00:18.6]} 44. Rxf4 {[%clk 0:00:06.9]}
44... Kg5 {[%clk 0:00:19.2]} 45. Rd4 {[%clk 0:00:04.8]} 45... Rc1+ {[%clk
0:00:19.7]} 46. Kd2 {[%clk 0:00:04.6]} 46... Rc5 {[%clk 0:00:20]} 47. b4 {[%clk
0:00:03.9]} 47... Rc8 {[%clk 0:00:20.5]} 48. Rxd5+ {[%clk 0:00:03.9]} 48... Kf4
{[%clk 0:00:21.1]} 49. Rf5+ {[%clk 0:00:04.5]} 49... Kg3 {[%clk 0:00:21.7]} 50.
a5 {[%clk 0:00:04.1]} 50... Rc4 {[%clk 0:00:21.2]} 51. axb6 {[%clk 0:00:03.8]}
51... axb6 {[%clk 0:00:22.1]} 52. b5 {[%clk 0:00:04.4]} 52... Rb4 {[%clk
0:00:22.2]} 53. Kc3 {[%clk 0:00:04.3]} 53... Rb1 {[%clk 0:00:22.1]} 54. Kd4
{[%clk 0:00:04.5]} 54... Rc1 {[%clk 0:00:22.5]} 55. Kd5 {[%clk 0:00:03.2]} 55...
Rc5+ {[%clk 0:00:22.9]} 56. Kd6 {[%clk 0:00:02.8]} 56... Rc1 {[%clk 0:00:23.8]}
57. g5 {[%clk 0:00:02.9]} 57... Kh4 {[%clk 0:00:24.2]} 58. g6 {[%clk 0:00:03]}
58... Rg1 {[%clk 0:00:24.3]} 59. Rf6 {[%clk 0:00:03.5]} 59... Kg5 {[%clk
0:00:24]} 60. Ke7 {[%clk 0:00:04.1]} 60... Re1+ {[%clk 0:00:23.4]} 61. Kf7
{[%clk 0:00:04.4]} 61... Rc1 {[%clk 0:00:24.3]} 62. f4+ {[%clk 0:00:04.4]} 62...
Kh5 {[%clk 0:00:23.2]} 63. g7 {[%clk 0:00:05]} 63... Rc7+ {[%clk 0:00:23.5]} 64.
Kg8 {[%clk 0:00:05.3]} 64... Rc8+ {[%clk 0:00:23.9]} 65. Kh7 {[%clk 0:00:05.6]}
65... Rc5 {[%clk 0:00:24.8]} 66. g8=Q {[%clk 0:00:05.2]} 66... Rxb5 {[%clk
0:00:25.7]} 67. Qg6+ {[%clk 0:00:05.1]} 1-0

[Event "*** Titled Tuesday Blitz"]
[Site "Chess.com"]
[Date "2020.12.29"]
[Round "3"]
[White "Arseniy_Nesterov"]
[Black "Alexandr_Kholin"]
[Result "1-0"]
[WhiteElo "2768"]
[BlackElo "2547"]
[TimeControl "180+1"]
[EndTime "10:29:37 PST"]
[Termination "Arseniy_Nesterov won by resignation"]

1. d4 {[%clk 0:03:00.9]} 1... d5 {[%clk 0:02:58.8]} 2. c4 {[%clk 0:03:01]} 2...
c6 {[%clk 0:02:58.2]} 3. Nf3 {[%clk 0:02:58.7]} 3... Nf6 {[%clk 0:02:58.3]} 4.
e3 {[%clk 0:02:57.1]} 4... e6 {[%clk 0:02:58.1]} 5. Nc3 {[%clk 0:02:55.9]} 5...
Nbd7 {[%clk 0:02:58.1]} 6. Qc2 {[%clk 0:02:55]} 6... Bd6 {[%clk 0:02:58.2]} 7.
b3 {[%clk 0:02:53.4]} 7... O-O {[%clk 0:02:53]} 8. Be2 {[%clk 0:02:52.7]} 8...
e5 {[%clk 0:02:50.9]} 9. cxd5 {[%clk 0:02:49.8]} 9... cxd5 {[%clk 0:02:49.9]}
10. Nb5 {[%clk 0:02:42.4]} 10... Bb4+ {[%clk 0:02:48.2]} 11. Bd2 {[%clk
0:02:40.8]} 11... Bxd2+ {[%clk 0:02:48.1]} 12. Nxd2 {[%clk 0:02:38.3]} 12... a6
{[%clk 0:02:47.4]} 13. dxe5 {[%clk 0:02:34.7]} 13... Nxe5 {[%clk 0:02:47.8]} 14.
Nd4 {[%clk 0:02:34.3]} 14... Bg4 {[%clk 0:02:47.1]} 15. Bxg4 {[%clk 0:02:29.7]}
15... Nexg4 {[%clk 0:02:47.9]} 16. O-O {[%clk 0:02:25.7]} 16... Qd6 {[%clk
0:02:42]} 17. N2f3 {[%clk 0:02:19.3]} 17... Rac8 {[%clk 0:02:40.5]} 18. Qb2
{[%clk 0:02:17.6]} 18... Ne4 {[%clk 0:02:29.9]} 19. Nf5 {[%clk 0:02:11.2]} 19...
Qf6 {[%clk 0:01:52.7]} 20. Qxf6 {[%clk 0:02:09.8]} 20... Ngxf6 {[%clk
0:01:53.6]} 21. Ne7+ {[%clk 0:02:08.7]} 21... Kh8 {[%clk 0:01:54.5]} 22. Nxc8
{[%clk 0:02:08.9]} 22... Rxc8 {[%clk 0:01:55.2]} 23. Rac1 {[%clk 0:02:07]} 23...
Nc3 {[%clk 0:01:55.3]} 24. Nd4 {[%clk 0:02:03.7]} 24... b5 {[%clk 0:01:53]} 25.
a3 {[%clk 0:02:00.2]} 25... a5 {[%clk 0:01:52]} 26. b4 {[%clk 0:01:36]} 26...
axb4 {[%clk 0:01:50.1]} 27. axb4 {[%clk 0:01:36.9]} 27... Rc4 {[%clk 0:01:50.5]}
28. f3 {[%clk 0:01:29.5]} 28... g6 {[%clk 0:01:48.7]} 29. Rc2 {[%clk 0:01:15.9]}
29... Na4 {[%clk 0:01:30]} 30. Rxc4 {[%clk 0:01:13.5]} 30... bxc4 {[%clk
0:01:30.5]} 31. Ra1 {[%clk 0:01:09.9]} 31... Nb6 {[%clk 0:01:28.4]} 32. Ra6
{[%clk 0:01:05.4]} 32... Nfd7 {[%clk 0:01:28.4]} 33. Kf2 {[%clk 0:01:02.8]}
33... Kg7 {[%clk 0:01:28.1]} 34. Ke1 {[%clk 0:00:56]} 34... Kf8 {[%clk
0:01:28.3]} 35. Kd2 {[%clk 0:00:56.1]} 35... Ke7 {[%clk 0:01:28.5]} 36. Kc3
{[%clk 0:00:54.3]} 36... h5 {[%clk 0:01:28.3]} 37. b5 {[%clk 0:00:51.4]} 37...
Kd6 {[%clk 0:01:28.4]} 38. Kb4 {[%clk 0:00:51.4]} 38... Kc7 {[%clk 0:01:24.3]}
39. Ne2 {[%clk 0:00:42.9]} 39... Kb7 {[%clk 0:01:18.1]} 40. Nc3 {[%clk
0:00:39.8]} 40... Ne5 {[%clk 0:01:02]} 41. Rxb6+ {[%clk 0:00:20.8]} 41... Kxb6
{[%clk 0:01:01.5]} 42. Nxd5+ {[%clk 0:00:21.1]} 42... Kb7 {[%clk 0:01:00.4]} 43.
f4 {[%clk 0:00:21.2]} 43... Nd3+ {[%clk 0:00:58.2]} 44. Kxc4 {[%clk 0:00:21.4]}
44... Ne1 {[%clk 0:00:59.1]} 45. g3 {[%clk 0:00:20.3]} 45... Nf3 {[%clk
0:00:29.7]} 46. h4 {[%clk 0:00:19.8]} 46... Nd2+ {[%clk 0:00:29.8]} 47. Kd4
{[%clk 0:00:18.5]} 47... Nf1 {[%clk 0:00:30.5]} 48. Ke5 {[%clk 0:00:10.7]} 48...
Nxg3 {[%clk 0:00:30.1]} 49. e4 {[%clk 0:00:09.4]} 49... f6+ {[%clk 0:00:18.6]}
50. Kxf6 {[%clk 0:00:08.1]} 50... Nxe4+ {[%clk 0:00:18.2]} 51. Kxg6 {[%clk
0:00:08.5]} 51... Nd6 {[%clk 0:00:18]} 52. b6 {[%clk 0:00:05.8]} 52... Kc6
{[%clk 0:00:16.5]} 53. Kxh5 {[%clk 0:00:06.1]} 53... Kxd5 {[%clk 0:00:16.5]} 54.
Kg6 {[%clk 0:00:06.6]} 54... Ke4 {[%clk 0:00:16.6]} 55. h5 {[%clk 0:00:06.6]}
55... Kxf4 {[%clk 0:00:16.1]} 56. h6 {[%clk 0:00:07.2]} 56... Nc8 {[%clk
0:00:16.1]} 57. h7 {[%clk 0:00:07.2]} 57... Ne7+ {[%clk 0:00:15.9]} 58. Kf7
{[%clk 0:00:07.2]} 1-0

[Event "*** Titled Tuesday Blitz"]
[Site "Chess.com"]
[Date "2020.12.29"]
[Round "3"]
[White "Kislov_Oleg"]
[Black "alexrustemov"]
[Result "0-1"]
[WhiteElo "2426"]
[BlackElo "2670"]
[TimeControl "180+1"]
[EndTime "10:29:37 PST"]
[Termination "alexrustemov won by resignation"]

1. e4 {[%clk 0:03:00.9]} 1... e6 {[%clk 0:02:59.1]} 2. d4 {[%clk 0:03:00.7]}
2... d5 {[%clk 0:02:58.6]} 3. Nc3 {[%clk 0:03:00.4]} 3... Bb4 {[%clk 0:02:58]}
4. exd5 {[%clk 0:03:00.2]} 4... exd5 {[%clk 0:02:56.7]} 5. Bd3 {[%clk
0:03:00.2]} 5... Nc6 {[%clk 0:02:56.9]} 6. Ne2 {[%clk 0:02:59.3]} 6... Nge7
{[%clk 0:02:56.3]} 7. O-O {[%clk 0:02:50.9]} 7... Bf5 {[%clk 0:02:56.7]} 8. Bg5
{[%clk 0:02:43.2]} 8... f6 {[%clk 0:02:53.6]} 9. Bh4 {[%clk 0:02:36.4]} 9... Qd7
{[%clk 0:02:53.2]} 10. Bg3 {[%clk 0:02:24.8]} 10... O-O {[%clk 0:02:43.6]} 11.
a3 {[%clk 0:02:21.6]} 11... Bxc3 {[%clk 0:02:43.1]} 12. Nxc3 {[%clk 0:02:14.6]}
12... Nxd4 {[%clk 0:02:35.7]} 13. Bxf5 {[%clk 0:01:54.5]} 13... Ndxf5 {[%clk
0:02:34.4]} 14. Qd3 {[%clk 0:01:48.2]} 14... c6 {[%clk 0:02:30.8]} 15. Rad1
{[%clk 0:01:41.8]} 15... Rad8 {[%clk 0:02:28.5]} 16. Ne4 {[%clk 0:01:36.8]}
16... b6 {[%clk 0:02:22.2]} 17. c4 {[%clk 0:01:31.3]} 17... Rfe8 {[%clk
0:02:07.1]} 18. c5 {[%clk 0:01:25.5]} 18... Nxg3 {[%clk 0:02:03.3]} 19. fxg3
{[%clk 0:01:12.9]} 19... Nf5 {[%clk 0:01:55.9]} 20. Nxf6+ {[%clk 0:01:10.1]}
20... gxf6 {[%clk 0:01:54.9]} 21. Rxf5 {[%clk 0:01:04.2]} 21... bxc5 {[%clk
0:01:49.9]} 22. Rxf6 {[%clk 0:01:02.2]} 22... Re6 {[%clk 0:01:45.3]} 23. Rdf1
{[%clk 0:00:48.4]} 23... Rxf6 {[%clk 0:01:40.9]} 24. Rxf6 {[%clk 0:00:49.3]}
24... Qe7 {[%clk 0:01:40.7]} 25. Rxc6 {[%clk 0:00:43.7]} 25... Qe1+ {[%clk
0:01:19.8]} 26. Qf1 {[%clk 0:00:42.5]} 26... Qe3+ {[%clk 0:01:19.9]} 27. Qf2
{[%clk 0:00:36.2]} 27... Qc1+ {[%clk 0:01:19.7]} 28. Qf1 {[%clk 0:00:36.1]}
28... Qxb2 {[%clk 0:01:18.4]} 29. Qf5 {[%clk 0:00:15.6]} 29... Qc1+ {[%clk
0:01:14.1]} 30. Qf1 {[%clk 0:00:14.5]} 30... Qe3+ {[%clk 0:01:10.7]} 31. Qf2
{[%clk 0:00:11.6]} 31... Qc1+ {[%clk 0:01:06.6]} 32. Qf1 {[%clk 0:00:11.5]}
32... Qxf1+ {[%clk 0:00:55]} 33. Kxf1 {[%clk 0:00:11.4]} 33... c4 {[%clk
0:00:55.6]} 34. Ke2 {[%clk 0:00:11]} 34... Re8+ {[%clk 0:00:51]} 35. Kd2 {[%clk
0:00:11]} 35... Re4 {[%clk 0:00:41.1]} 36. Rc7 {[%clk 0:00:08.6]} 36... Rd4+
{[%clk 0:00:39.9]} 37. Kc2 {[%clk 0:00:08.3]} 37... a5 {[%clk 0:00:32.1]} 38.
Rc5 {[%clk 0:00:07]} 38... a4 {[%clk 0:00:31.9]} 39. Ra5 {[%clk 0:00:06.9]}
39... Rd3 {[%clk 0:00:29.5]} 40. Rxa4 {[%clk 0:00:06.6]} 40... Kf7 {[%clk
0:00:27.1]} 41. Ra6 {[%clk 0:00:06.8]} 41... Ke7 {[%clk 0:00:22.1]} 42. g4
{[%clk 0:00:07.3]} 42... Re3 {[%clk 0:00:19.7]} 43. g5 {[%clk 0:00:06.9]} 43...
Re2+ {[%clk 0:00:16.2]} 44. Kc3 {[%clk 0:00:07.3]} 44... Rxg2 {[%clk 0:00:16.5]}
45. Kd4 {[%clk 0:00:05.3]} 45... Rd2+ {[%clk 0:00:16.1]} 46. Ke5 {[%clk
0:00:01.6]} 46... c3 {[%clk 0:00:15.1]} 47. Ra7+ {[%clk 0:00:02.2]} 47... Kd8
{[%clk 0:00:15]} 48. Kd6 {[%clk 0:00:02.6]} 48... Kc8 {[%clk 0:00:14]} 49. Kc6
{[%clk 0:00:02.5]} 49... Kd8 {[%clk 0:00:13.8]} 50. Kd6 {[%clk 0:00:02.5]} 50...
Ke8 {[%clk 0:00:14.3]} 51. Re7+ {[%clk 0:00:02.2]} 51... Kf8 {[%clk 0:00:14.2]}
52. Rc7 {[%clk 0:00:02.1]} 52... d4 {[%clk 0:00:13.3]} 53. a4 {[%clk 0:00:01.9]}
53... c2 {[%clk 0:00:12.5]} 54. a5 {[%clk 0:00:02.4]} 54... d3 {[%clk
0:00:09.3]} 55. a6 {[%clk 0:00:02.9]} 55... Rd1 {[%clk 0:00:09.8]} 56. a7 {[%clk
0:00:03.2]} 56... Ra1 {[%clk 0:00:09.9]} 57. Rc8+ {[%clk 0:00:02.3]} 57... Kg7
{[%clk 0:00:09.4]} 58. Rc7+ {[%clk 0:00:02.6]} 58... Kg6 {[%clk 0:00:09.3]} 59.
Rd7 {[%clk 0:00:01]} 0-1

[Event "*** Titled Tuesday Blitz"]
[Site "Chess.com"]
[Date "2020.12.29"]
[Round "3"]
[White "Sacbutt"]
[Black "Kopytkin"]
[Result "1/2-1/2"]
[WhiteElo "2213"]
[BlackElo "2367"]
[TimeControl "180+1"]
[EndTime "10:29:41 PST"]
[Termination "Game drawn by repetition"]

1. d4 {[%clk 0:03:00.9]} 1... Nf6 {[%clk 0:02:59.3]} 2. c4 {[%clk 0:03:00.7]}
2... g6 {[%clk 0:02:59.7]} 3. Nc3 {[%clk 0:03:00.4]} 3... Bg7 {[%clk 0:03:00.2]}
4. Nf3 {[%clk 0:02:59.9]} 4... O-O {[%clk 0:03:00]} 5. Bg5 {[%clk 0:02:59.8]}
5... c5 {[%clk 0:02:59.4]} 6. e3 {[%clk 0:02:59.2]} 6... cxd4 {[%clk 0:02:59.7]}
7. Nxd4 {[%clk 0:02:58.6]} 7... Nc6 {[%clk 0:02:58.1]} 8. Be2 {[%clk 0:02:58.1]}
8... Qa5 {[%clk 0:02:58.2]} 9. Bxf6 {[%clk 0:02:50.7]} 9... Bxf6 {[%clk
0:02:57.8]} 10. O-O {[%clk 0:02:51]} 10... Bg7 {[%clk 0:02:40.6]} 11. Bf3 {[%clk
0:02:36.3]} 11... Qc5 {[%clk 0:02:35.7]} 12. Nxc6 {[%clk 0:02:24]} 12... dxc6
{[%clk 0:02:32.8]} 13. Rc1 {[%clk 0:02:00.6]} 13... Be6 {[%clk 0:02:24.9]} 14.
b3 {[%clk 0:01:58.5]} 14... Rfd8 {[%clk 0:02:22.5]} 15. Qc2 {[%clk 0:01:56.7]}
15... Rd7 {[%clk 0:02:02.5]} 16. Rfd1 {[%clk 0:01:52.9]} 16... Rad8 {[%clk
0:01:47.7]} 17. Rxd7 {[%clk 0:01:50.5]} 17... Rxd7 {[%clk 0:01:48]} 18. Rd1
{[%clk 0:01:49.3]} 18... Rxd1+ {[%clk 0:01:46.4]} 19. Nxd1 {[%clk 0:01:44.4]}
19... Qe5 {[%clk 0:01:46.1]} 20. h3 {[%clk 0:01:25.2]} 20... h5 {[%clk
0:01:42.5]} 21. h4 {[%clk 0:01:05.5]} 21... Bf6 {[%clk 0:01:40.5]} 22. g3 {[%clk
0:01:04.1]} 22... Qa1 {[%clk 0:01:35.5]} 23. Kg2 {[%clk 0:01:01.9]} 23... Bf5
{[%clk 0:01:35.1]} 24. e4 {[%clk 0:01:00.3]} 24... Be6 {[%clk 0:01:33]} 25. Ne3
{[%clk 0:00:59]} 25... Qb2 {[%clk 0:01:30.9]} 26. Qxb2 {[%clk 0:00:58.3]} 26...
Bxb2 {[%clk 0:01:31.8]} 27. Be2 {[%clk 0:00:49.5]} 27... a5 {[%clk 0:01:23.9]}
28. f4 {[%clk 0:00:45.9]} 28... Kg7 {[%clk 0:01:19.8]} 29. f5 {[%clk 0:00:43.5]}
29... Bc8 {[%clk 0:01:10.5]} 30. fxg6 {[%clk 0:00:40.5]} 30... fxg6 {[%clk
0:01:08.5]} 31. g4 {[%clk 0:00:38.5]} 31... Bc1 {[%clk 0:01:00.1]} 32. Kf2
{[%clk 0:00:35.5]} 32... hxg4 {[%clk 0:00:37.4]} 33. Nxg4 {[%clk 0:00:30.6]}
33... a4 {[%clk 0:00:36.1]} 34. bxa4 {[%clk 0:00:26.1]} 34... Be6 {[%clk
0:00:34.7]} 35. Kg3 {[%clk 0:00:18.2]} 35... Bd2 {[%clk 0:00:33.6]} 36. Nf2
{[%clk 0:00:16]} 36... Kf6 {[%clk 0:00:25.2]} 37. Ng4+ {[%clk 0:00:14.8]} 37...
Kg7 {[%clk 0:00:25.1]} 38. Nf2 {[%clk 0:00:15]} 38... Kf6 {[%clk 0:00:24.3]} 39.
Ng4+ {[%clk 0:00:15]} 39... Bxg4 {[%clk 0:00:23.8]} 40. Kxg4 {[%clk 0:00:13.9]}
40... Ke5 {[%clk 0:00:24]} 41. Kf3 {[%clk 0:00:12.3]} 41... Kd4 {[%clk
0:00:21.1]} 42. Bd1 {[%clk 0:00:09]} 42... e5 {[%clk 0:00:20]} 43. Bb3 {[%clk
0:00:08.6]} 43... Kc5 {[%clk 0:00:19]} 44. Kg4 {[%clk 0:00:06.9]} 44... Kb4
{[%clk 0:00:18.5]} 45. h5 {[%clk 0:00:06.9]} 45... gxh5+ {[%clk 0:00:18.5]} 46.
Kxh5 {[%clk 0:00:07.8]} 46... Kc5 {[%clk 0:00:13]} 47. Kg6 {[%clk 0:00:07.6]}
47... Bb4 {[%clk 0:00:11.9]} 48. Kf5 {[%clk 0:00:07.5]} 48... Kd6 {[%clk
0:00:11.4]} 49. Kf6 {[%clk 0:00:07.3]} 49... Ba5 {[%clk 0:00:10.7]} 50. Bc2
{[%clk 0:00:07.4]} 50... Bb6 {[%clk 0:00:10.4]} 51. Bd1 {[%clk 0:00:07.6]} 51...
Ba5 {[%clk 0:00:10.7]} 52. Bg4 {[%clk 0:00:07.8]} 52... Bb6 {[%clk 0:00:10.4]}
53. Bc8 {[%clk 0:00:07.8]} 53... Kc7 {[%clk 0:00:06.8]} 54. Be6 {[%clk
0:00:07.2]} 54... Bd4 {[%clk 0:00:07]} 55. Ke7 {[%clk 0:00:07]} 55... b6 {[%clk
0:00:06.7]} 56. Bd7 {[%clk 0:00:06.8]} 56... Kb7 {[%clk 0:00:05.6]} 57. Be8
{[%clk 0:00:06.8]} 57... Kc7 {[%clk 0:00:05.6]} 58. Bd7 {[%clk 0:00:07.3]} 58...
Bc3 {[%clk 0:00:05.5]} 59. Ke6 {[%clk 0:00:07.2]} 59... Bd4 {[%clk 0:00:05.5]}
60. Be8 {[%clk 0:00:07.5]} 60... Bc3 {[%clk 0:00:05.9]} 61. Bd7 {[%clk
0:00:07.9]} 61... Bd4 {[%clk 0:00:06.2]} 62. Be8 {[%clk 0:00:08.3]} 62... Bc3
{[%clk 0:00:06.7]} 63. Ke7 {[%clk 0:00:08.4]} 63... Bd4 {[%clk 0:00:06.9]} 64.
Bf7 {[%clk 0:00:08.9]} 64... Bc3 {[%clk 0:00:07]} 65. Ke6 {[%clk 0:00:09.3]}
65... Bd4 {[%clk 0:00:07.2]} 66. Be8 {[%clk 0:00:09.7]} 1/2-1/2

[Event "*** Titled Tuesday Blitz"]
[Site "Chess.com"]
[Date "2020.12.29"]
[Round "3"]
[White "HaryKane"]
[Black "igorkovalenko"]
[Result "0-1"]
[WhiteElo "2678"]
[BlackElo "2913"]
[TimeControl "180+1"]
[EndTime "10:29:43 PST"]
[Termination "igorkovalenko won by checkmate"]

1. e4 {[%clk 0:03:00.9]} 1... c5 {[%clk 0:02:59.9]} 2. Nf3 {[%clk 0:03:00.8]}
2... e6 {[%clk 0:03:00.4]} 3. d4 {[%clk 0:03:00.9]} 3... cxd4 {[%clk 0:03:01.3]}
4. Nxd4 {[%clk 0:03:01.7]} 4... Nf6 {[%clk 0:03:01.9]} 5. Nc3 {[%clk 0:03:00.3]}
5... Nc6 {[%clk 0:03:02.4]} 6. Ndb5 {[%clk 0:03:00.1]} 6... Bc5 {[%clk
0:03:01.8]} 7. Nd6+ {[%clk 0:03:00]} 7... Ke7 {[%clk 0:03:01.9]} 8. Nxc8+ {[%clk
0:02:59.9]} 8... Rxc8 {[%clk 0:03:02.7]} 9. Bd3 {[%clk 0:02:59.9]} 9... Qc7
{[%clk 0:03:03.1]} 10. Qe2 {[%clk 0:02:54.5]} 10... Nd4 {[%clk 0:02:53.4]} 11.
Qd1 {[%clk 0:02:45.5]} 11... a6 {[%clk 0:02:52.7]} 12. Be3 {[%clk 0:02:40.9]}
12... h5 {[%clk 0:02:52.5]} 13. Qd2 {[%clk 0:02:37.9]} 13... Ng4 {[%clk
0:02:52]} 14. Nd1 {[%clk 0:02:29.3]} 14... Nxe3 {[%clk 0:02:46.3]} 15. Nxe3
{[%clk 0:02:27.7]} 15... Nc6 {[%clk 0:02:44.2]} 16. O-O-O {[%clk 0:02:19.7]}
16... b5 {[%clk 0:02:43.4]} 17. Kb1 {[%clk 0:02:19.5]} 17... Rhd8 {[%clk
0:02:41.1]} 18. g4 {[%clk 0:02:05.3]} 18... Qa5 {[%clk 0:02:03.3]} 19. c3 {[%clk
0:01:46.5]} 19... Qb6 {[%clk 0:01:44.9]} 20. Nc2 {[%clk 0:01:32.4]} 20... hxg4
{[%clk 0:01:39.9]} 21. Qg5+ {[%clk 0:01:31.9]} 21... Kf8 {[%clk 0:01:40.1]} 22.
Qxg4 {[%clk 0:01:26.3]} 22... b4 {[%clk 0:01:32.8]} 23. c4 {[%clk 0:01:14.1]}
23... b3 {[%clk 0:01:31.2]} 24. axb3 {[%clk 0:01:13.5]} 24... Qxb3 {[%clk
0:01:30.4]} 25. Rhg1 {[%clk 0:01:13.5]} 25... g6 {[%clk 0:01:29.8]} 26. Na1
{[%clk 0:00:56.7]} 26... Qb6 {[%clk 0:01:25.4]} 27. Qf4 {[%clk 0:00:50]} 27...
Bd4 {[%clk 0:01:21.6]} 28. Rd2 {[%clk 0:00:45.9]} 28... Be5 {[%clk 0:01:17.1]}
29. Qh6+ {[%clk 0:00:43.5]} 29... Ke7 {[%clk 0:01:16.9]} 30. Re1 {[%clk
0:00:31.1]} 30... Rh8 {[%clk 0:01:16.3]} 31. Qg5+ {[%clk 0:00:28.4]} 31... Bf6
{[%clk 0:01:16.5]} 32. Qg3 {[%clk 0:00:28.3]} 32... Rb8 {[%clk 0:01:12.5]} 33.
Ree2 {[%clk 0:00:26]} 33... Rh5 {[%clk 0:01:09.7]} 34. f4 {[%clk 0:00:25.3]}
34... Nd4 {[%clk 0:01:07.2]} 35. Rg2 {[%clk 0:00:22.7]} 35... Bh4 {[%clk
0:01:01.7]} 36. Qg4 {[%clk 0:00:17.8]} 36... Be1 {[%clk 0:00:56.4]} 37. f5
{[%clk 0:00:13.4]} 37... Bxd2 {[%clk 0:00:55.8]} 38. Rxd2 {[%clk 0:00:14.3]}
38... Qb4 {[%clk 0:00:47.4]} 39. Qf4 {[%clk 0:00:14.1]} 39... g5 {[%clk
0:00:44.7]} 40. Qe3 {[%clk 0:00:13.8]} 40... e5 {[%clk 0:00:37.4]} 41. f6+
{[%clk 0:00:14.3]} 41... Kd8 {[%clk 0:00:35.6]} 42. Be2 {[%clk 0:00:10.4]} 42...
Rxh2 {[%clk 0:00:31.3]} 43. Qxg5 {[%clk 0:00:10.6]} 43... Qxd2 {[%clk
0:00:29.7]} 44. Qxd2 {[%clk 0:00:10.5]} 44... Rxe2 {[%clk 0:00:28.4]} 45. Qa5+
{[%clk 0:00:10.8]} 45... Kc8 {[%clk 0:00:27.9]} 46. Qxa6+ {[%clk 0:00:09.7]}
46... Rb7 {[%clk 0:00:20.7]} 47. Qa8+ {[%clk 0:00:09.9]} 47... Kc7 {[%clk
0:00:20.5]} 48. Qa5+ {[%clk 0:00:10.5]} 48... Kc8 {[%clk 0:00:17.9]} 49. Qa8+
{[%clk 0:00:09]} 49... Kc7 {[%clk 0:00:18.1]} 50. Qa5+ {[%clk 0:00:09.4]} 50...
Kc6 {[%clk 0:00:14.4]} 51. Qd5+ {[%clk 0:00:07.4]} 51... Kb6 {[%clk 0:00:14.8]}
52. Qd6+ {[%clk 0:00:04]} 52... Nc6 {[%clk 0:00:14]} 53. Nb3 {[%clk 0:00:03.5]}
53... Ka7 {[%clk 0:00:10.7]} 54. Qc5+ {[%clk 0:00:03.2]} 54... Kb8 {[%clk
0:00:10.7]} 55. Qf8+ {[%clk 0:00:03.6]} 55... Ka7 {[%clk 0:00:11.1]} 56. Qa3+
{[%clk 0:00:03.4]} 56... Kb8 {[%clk 0:00:10.7]} 57. Qd6+ {[%clk 0:00:04.1]}
57... Kc8 {[%clk 0:00:10.7]} 58. Qf8+ {[%clk 0:00:04.3]} 58... Kc7 {[%clk
0:00:11.1]} 59. c5 {[%clk 0:00:02.2]} 59... Rxb3 {[%clk 0:00:10.5]} 60. Qd6+
{[%clk 0:00:03.1]} 60... Kc8 {[%clk 0:00:10.7]} 61. Qf8+ {[%clk 0:00:03.5]}
61... Kb7 {[%clk 0:00:11.2]} 62. Kc1 {[%clk 0:00:04.3]} 62... Rbxb2 {[%clk
0:00:11.1]} 63. Qxf7 {[%clk 0:00:05.2]} 63... Rbc2+ {[%clk 0:00:10.9]} 64. Kd1
{[%clk 0:00:05.8]} 64... Rcd2+ {[%clk 0:00:11.4]} 65. Kc1 {[%clk 0:00:06.5]}
65... Nb4 {[%clk 0:00:11.2]} 66. Qb3 {[%clk 0:00:06.2]} 66... Rc2+ {[%clk
0:00:11.2]} 67. Kd1 {[%clk 0:00:06.8]} 67... Red2+ {[%clk 0:00:11.4]} 68. Ke1
{[%clk 0:00:07.3]} 68... Rb2 {[%clk 0:00:11.9]} 69. Qf7 {[%clk 0:00:06.5]} 69...
Nd3+ {[%clk 0:00:11.6]} 70. Kf1 {[%clk 0:00:06.1]} 70... Rd1# {[%clk 0:00:12.1]}
0-1